bitfinex-derivatives/quotes_SOLF0:USTF0_20260304
["timestamp","ask_amount","ask_price","bid_price","bid_amount"]
[1772617614953,43.27705769,90.963,90.911,7.94366215]
[1772617615253,43.27705769,90.963,90.912,7.94366215]
[1772617615452,43.27705769,90.963,90.913,7.94366215]
[1772617615755,43.27705769,90.948,90.889,9.901]
[1772617616853,43.27705769,90.948,90.898,9.9]
[1772617618051,43.27705769,90.944,90.887,9.902]
[1772617618451,43.27705769,90.944,90.883,9.31326833]
[1772617619850,43.27705769,90.979,90.887,17.36224202]
[1772617620056,43.27705769,90.979,90.892,17.36224202]
[1772617620652,43.27705769,90.973,90.912,9.899]
[1772617621552,43.27705769,90.992,90.912,17.61552401]
[1772617622152,43.27705769,90.989,90.926,9.897]
[1772617622352,43.27705769,90.989,90.897,9.82979502]
[1772617622557,43.27705769,90.979,90.896,9.82979502]
[1772617622761,43.27705769,90.979,90.889,9.82979502]
[1772617623057,43.27705769,90.966,90.894,17.70897017]
[1772617623254,43.27705769,90.966,90.895,17.80139268]
[1772617623660,43.27705769,90.966,90.89,9.82979502]
[1772617623856,43.27705769,90.959,90.883,9.92567027]
[1772617624057,43.27705769,90.899,90.801,13.12828953]
[1772617624358,43.27705769,90.879,90.797,37.55685797]
[1772617624859,43.27705769,90.879,90.817,9.909]
[1772617625058,43.27705769,90.879,90.797,37.55685797]
[1772617625758,43.27705769,90.841,90.737,38.64987415]
[1772617626057,43.27705769,90.841,90.751,38.64987415]
[1772617626260,43.27705769,90.889,90.771,39.38207638]
[1772617626456,43.27705769,90.872,90.75,43.52089675]
[1772617627058,43.27705769,90.872,90.756,9.916]
[1772617627059,9.906,90.848,90.756,9.916]
[1772617627359,43.27705769,90.847,90.757,39.38207638]
[1772617627962,43.27705769,90.845,90.761,39.48617604]
[1772617629361,43.27705769,90.845,90.737,29.67753484]
[1772617630064,53.18305769,90.845,90.758,29.67753484]
[1772617631064,43.27705769,90.832,90.76,30.23732806]
[1772617631467,43.27705769,90.858,90.76,30.23732806]
[1772617631663,43.27705769,90.858,90.788,9.912]
[1772617632459,43.27705769,90.858,90.788,40.36623814]
[1772617635160,43.27705769,90.858,90.79,40.14216343]
[1772617635461,43.27705769,90.858,90.76,4.15855533]
[1772617635462,43.27705769,90.909,90.791,30.3139624]
[1772617635661,43.27705769,90.891,90.791,30.3139624]
[1772617635870,43.27705769,90.889,90.791,30.3139624]
[1772617636265,43.27705769,90.87,90.791,30.3139624]
[1772617636966,43.27705769,90.867,90.793,9.912]
[1772617638259,45.03600018,90.865,90.793,9.912]
[1772617638770,9.904,90.864,90.782,9.913]
[1772617638966,45.03600018,90.863,90.782,9.913]
[1772617639372,153.919,90.954,90.753,29.81183239]
[1772617639373,45.03600018,90.844,90.753,29.81183239]
[1772617640169,45.03600018,90.835,90.77,9.914]
[1772617640366,45.03600018,90.835,90.771,29.84586949]
[1772617640871,45.03600018,90.858,90.789,9.912]
[1772617641263,45.03600018,90.858,90.771,29.84586949]
[1772617641466,45.03600018,90.858,90.8,9.911]
[1772617642064,45.03600018,90.858,90.79,29.92978987]
[1772617642674,45.03600018,90.858,90.796,9.912]
[1772617643581,42.5605919,90.878,90.816,9.909]
[1772617643875,4.15855533,90.93,90.817,29.99533548]
[1772617644073,42.5605919,90.929,90.817,29.99533548]
[1772617644379,42.5605919,90.901,90.837,30.15990334]
[1772617645172,42.5605919,90.901,90.851,9.905]
[1772617645677,42.5605919,90.901,90.81,4.15855533]
[1772617645678,42.5605919,90.924,90.852,30.290075]
[1772617645972,42.5605919,90.924,90.866,30.290075]
[1772617646579,42.5605919,90.924,90.876,9.903]
[1772617646771,42.5605919,90.951,90.866,30.290075]
[1772617647577,42.5605919,90.946,90.844,29.96555566]
[1772617647979,9.897,90.927,90.863,9.904]
[1772617648180,42.5605919,90.926,90.844,29.96555566]
[1772617649085,42.5605919,90.92,90.848,9.906]
[1772617649277,42.5605919,90.92,90.789,19.825]
[1772617649278,42.5605919,90.92,90.82,29.89711908]
[1772617649778,42.5605919,90.901,90.827,9.908]
[1772617650175,42.5605919,90.897,90.801,29.97681773]
[1772617650580,42.5605919,90.897,90.79,4.15855533]
[1772617650581,4.15855533,90.95,90.814,43.77472672]
[1772617651385,9.897,90.931,90.853,9.905]
[1772617651684,4.15855533,90.95,90.853,9.905]
[1772617652482,42.5605919,90.949,90.853,9.905]
[1772617652684,42.5605919,90.921,90.853,9.905]
[1772617653387,42.5605919,90.919,90.832,43.77472672]
[1772617653688,42.5605919,90.919,90.791,43.77472672]
[1772617654788,42.5605919,90.901,90.833,9.907]
[1772617655189,42.5605919,90.901,90.852,9.905]
[1772617655491,42.5605919,90.929,90.834,43.77472672]
[1772617656387,42.5605919,90.927,90.851,9.905]
[1772617656789,42.5605919,90.922,90.851,9.905]
[1772617657290,42.5605919,90.922,90.841,9.907]
[1772617657681,9.899,90.909,90.841,9.907]
[1772617657883,42.5605919,90.908,90.841,9.907]
[1772617658083,42.5605919,90.908,90.834,43.77472672]
[1772617658386,42.5605919,90.908,90.85,9.906]
[1772617659284,42.5605919,90.908,90.834,43.77472672]
[1772617659480,42.5605919,90.947,90.873,43.77472672]
[1772617659882,42.5605919,90.966,90.881,43.77472672]
[1772617660886,9.889,91.0,90.907,43.77472672]
[1772617661584,9.888,91.011,90.945,9.895]
[1772617662392,9.888,91.011,90.945,53.66972672]
[1772617662591,9.885,91.039,90.97,9.892]
[1772617662793,42.5605919,91.038,90.945,43.77472672]
[1772617664692,42.5605919,91.06,90.981,43.77472672]
[1772617666195,42.5605919,91.06,90.96,4.15855533]
[1772617666196,42.5605919,91.06,90.961,43.77472672]
[1772617666998,42.5605919,91.058,90.982,9.891]
[1772617668192,45.34594009,91.055,90.97,9.893]
[1772617668390,153.67,91.102,90.961,43.77472672]
[1772617668391,45.34594009,91.049,90.961,43.77472672]
[1772617668592,45.34594009,91.049,90.921,44.14721146]
[1772617668992,45.34594009,91.031,90.944,44.14721146]
[1772617669796,45.34594009,91.007,90.932,9.897]
[1772617670296,45.34594009,91.003,90.92,44.14721146]
[1772617670488,45.34594009,91.003,90.901,44.14721146]
[1772617670693,45.34594009,90.999,90.901,44.14721146]
[1772617671796,45.34594009,90.999,90.815,167.28128953]
[1772617671797,45.34594009,90.978,90.871,44.14721146]
[1772617672398,45.34594009,90.956,90.841,44.14721146]
[1772617673400,4.15855533,90.96,90.878,9.903]
[1772617673401,45.34594009,90.949,90.878,9.903]
[1772617673603,45.34594009,90.949,90.861,44.14721146]
[1772617674605,45.34594009,90.935,90.861,44.14721146]
[1772617675706,9.894,90.956,90.861,44.14721146]
[1772617675905,55.23994009,90.956,90.861,44.14721146]
[1772617677206,55.23994009,90.956,90.885,9.902]
[1772617677401,4.15855533,90.98,90.861,44.14721146]
[1772617677402,45.34594009,90.944,90.861,44.14721146]
[1772617678406,45.34594009,90.941,90.861,44.14721146]
[1772617679113,55.24294009,90.934,90.861,54.05121146]
[1772617680208,9.898,90.922,90.861,44.14721146]
[1772617680510,45.34594009,90.921,90.862,116.0]
[1772617680711,45.34594009,90.921,90.852,44.14721146]
[1772617680913,45.34594009,90.959,90.852,44.14721146]
[1772617681111,45.34594009,90.959,90.82,4.15855533]
[1772617681112,45.34594009,90.959,90.854,44.14721146]
[1772617681712,45.34594009,90.956,90.872,44.14721146]
[1772617682012,45.34594009,90.956,90.874,44.14721146]
[1772617682806,45.34594009,90.956,90.888,9.901]
[1772617683012,45.34594009,90.956,90.888,125.901]
[1772617683208,45.34594009,90.956,90.888,116.0]
[1772617683408,45.34594009,90.956,90.874,44.14721146]
[1772617684214,45.34594009,90.954,90.874,44.14721146]
[1772617684811,45.34594009,90.954,90.873,44.14721146]
[1772617685717,45.34594009,90.952,90.881,9.902]
[1772617686017,45.34594009,90.952,90.873,44.14721146]
[1772617686608,45.34594009,90.979,90.873,44.14721146]
[1772617687205,45.34594009,90.977,90.911,9.899]
[1772617687404,45.34594009,90.977,90.899,44.14721146]
[1772617687810,45.34594009,90.973,90.901,9.9]
[1772617688016,45.34594009,90.973,90.901,44.14721146]
[1772617688717,45.34594009,90.973,90.92,9.898]
[1772617690314,9.891,90.989,90.921,44.14721146]
[1772617690519,45.34594009,90.993,90.928,9.897]
[1772617690716,45.34594009,90.993,90.921,44.14721146]
[1772617691213,45.34594009,90.979,90.882,44.14721146]
[1772617692320,45.34594009,90.979,90.902,9.9]
[1772617692522,45.34594009,90.979,90.882,44.14721146]
[1772617693610,55.24094009,90.953,90.896,9.901]
[1772617693815,45.34594009,90.989,90.882,44.14721146]
[1772617694223,45.34594009,90.989,90.915,44.14721146]
[1772617694917,45.34594009,90.989,90.933,44.14721146]
[1772617695113,45.34594009,91.009,90.933,44.14721146]
[1772617695519,45.34594009,91.009,90.95,9.895]
[1772617696518,45.34594009,91.005,90.94,9.896]
[1772617697120,45.34594009,91.005,90.949,9.895]
[1772617697516,45.34594009,91.005,90.933,44.14721146]
[1772617697919,45.34594009,91.005,90.901,44.14721146]
[1772617698320,47.97182527,90.992,90.93,9.897]
[1772617699223,47.97182527,90.992,90.901,44.14721146]
[1772617700023,47.97182527,90.973,90.91,9.899]
[1772617700217,47.97182527,90.973,90.87,47.70897043]
[1772617701324,47.97182527,90.971,90.87,47.70897043]
[1772617701827,44.85273944,90.925,90.849,44.06091695]
[1772617703927,44.85273944,90.925,90.821,44.06091695]
[1772617704130,44.85273944,90.919,90.821,44.06091695]
[1772617704324,4.14692077,90.92,90.821,44.06091695]
[1772617704325,44.85273944,90.911,90.821,44.06091695]
[1772617704722,44.85273944,90.899,90.821,44.06091695]
[1772617704928,44.85273944,90.895,90.801,44.06091695]
[1772617705123,4.14692077,90.88,90.78,44.06091695]
[1772617705327,44.85273944,90.879,90.78,44.06091695]
[1772617706322,44.85273944,90.866,90.789,44.06091695]
[1772617706825,44.85273944,90.866,90.801,9.911]
[1772617707020,44.85273944,90.866,90.789,44.06091695]
[1772617709324,44.85273944,90.866,90.802,44.06091695]
[1772617709523,44.85273944,90.885,90.802,44.06091695]
[1772617709933,44.85273944,90.885,90.82,44.06091695]
[1772617710136,44.85273944,90.906,90.822,44.06091695]
[1772617710531,44.85273944,90.906,90.831,9.908]
[1772617710828,44.85273944,90.902,90.831,9.908]
[1772617711426,4.14692077,90.94,90.831,9.908]
[1772617711427,54.75273944,90.9,90.831,9.908]
[1772617711630,44.85273944,90.9,90.831,9.908]
[1772617711835,44.85273944,90.9,90.841,9.907]
[1772617712038,44.85273944,90.939,90.841,44.06091695]
[1772617712437,44.85273944,90.939,90.863,9.904]
[1772617712630,44.85273944,90.933,90.863,9.904]
[1772617714335,44.85273944,90.928,90.863,9.904]
[1772617714833,44.85273944,90.959,90.863,44.06091695]
[1772617716130,44.85273944,90.959,90.894,9.901]
[1772617716334,44.85273944,90.959,90.883,44.06091695]
[1772617719029,44.85273944,90.946,90.847,53.85008557]
[1772617719230,44.85273944,90.946,90.847,44.06091695]
[1772617719839,44.85273944,90.926,90.86,9.905]
[1772617720237,44.85273944,90.926,90.87,9.903]
[1772617721334,44.85273944,90.926,90.88,9.902]
[1772617722234,44.85273944,90.952,90.881,44.06091695]
[1772617723136,44.85273944,90.952,90.887,9.902]
[1772617723941,4.14692077,91.02,90.89,48.20783772]
[1772617724230,44.85273944,91.019,90.89,48.20783772]
[1772617725046,55.72630451,91.019,90.89,48.20783772]
[1772617725342,44.85273944,90.986,90.914,9.899]
[1772617725537,44.85273944,90.986,90.914,53.95991695]
[1772617726344,44.85273944,90.982,90.914,53.95991695]
[1772617728944,48.18315801,90.98,90.914,44.06091695]
[1772617729343,48.18315801,90.98,90.889,48.36775646]
[1772617729344,52.33007878,90.98,90.889,48.36775646]
[1772617729837,48.18315801,90.964,90.894,48.36775646]
[1772617730443,48.18315801,90.964,90.913,9.899]
[1772617730845,48.18315801,90.964,90.894,48.36775646]
[1772617732448,48.18315801,90.961,90.898,9.9]
[1772617733146,48.18315801,90.961,90.898,48.36775646]
[1772617733351,21.87356507,91.019,90.908,48.36775646]
[1772617733352,48.18315801,90.989,90.908,48.36775646]
[1772617735044,48.18315801,90.98,90.915,9.899]
[1772617736055,48.18315801,90.976,90.923,9.898]
[1772617737557,48.18315801,90.976,90.913,9.899]
[1772617738346,48.18315801,90.972,90.903,9.9]
[1772617739254,48.18315801,90.967,90.903,9.9]
[1772617739458,48.18315801,90.967,90.894,9.901]
[1772617739657,48.18315801,90.967,90.889,48.36775646]
[1772617739855,48.18315801,90.949,90.889,48.36775646]
[1772617740156,48.18315801,90.949,90.898,9.9]
[1772617742052,48.18315801,90.975,90.907,48.36775646]
[1772617742253,48.18315801,90.975,90.878,48.36775646]
[1772617742461,4.14692077,91.0,90.878,48.36775646]
[1772617742462,48.18315801,90.965,90.878,48.36775646]
[1772617742956,58.07715801,90.957,90.895,9.901]
[1772617743159,48.18315801,90.957,90.878,164.36775646]
[1772617743453,48.18315801,90.957,90.879,116.0]
[1772617744253,48.18315801,90.939,90.879,125.902]
[1772617745256,48.18315801,90.937,90.879,125.902]
[1772617745455,48.18315801,90.937,90.878,48.36775646]
[1772617746057,48.18315801,90.935,90.878,58.27075646]
[1772617746250,48.18315801,90.935,90.878,9.903]
[1772617746553,48.18315801,90.924,90.865,9.904]
[1772617747052,48.18315801,90.922,90.865,9.904]
[1772617747257,48.18315801,90.922,90.841,48.36775646]
[1772617747660,58.08115801,90.922,90.841,48.36775646]
[1772617749256,58.08115801,90.922,90.853,9.905]
[1772617749453,58.08115801,90.922,90.854,48.36775646]
[1772617750456,48.18315801,90.912,90.854,48.36775646]
[1772617751161,48.18315801,90.959,90.855,48.36775646]
[1772617751352,48.18315801,90.959,90.861,48.36775646]
[1772617751557,48.18315801,90.948,90.867,48.36775646]
[1772617752359,48.18315801,90.948,90.876,48.36775646]
[1772617753059,20.40504787,91.031,90.876,48.36775646]
[1772617753060,4.14728842,91.09,90.942,48.36775646]
[1772617753257,4.14728842,91.09,90.913,19.53797749]
[1772617753258,153.614,91.135,90.953,48.36775646]
[1772617753562,4.14728842,91.07,90.971,48.36775646]
[1772617753961,9.883,91.063,90.972,9.892]
[1772617754960,48.18315801,91.056,90.972,9.892]
[1772617755354,48.18315801,91.056,90.96,9.894]
[1772617755558,48.18315801,91.031,90.952,48.36775646]
[1772617756760,48.18315801,91.031,90.954,9.894]
[1772617757664,48.18315801,91.029,90.954,9.894]
[1772617759556,48.18315801,91.029,90.966,9.893]
[1772617760360,48.18315801,91.029,90.955,45.33940994]
[1772617760560,48.18315801,91.029,90.94,4.14728842]
[1772617760956,48.18315801,91.029,90.937,45.33940994]
[1772617761659,9.886,91.028,90.938,9.896]
[1772617761861,43.23387611,91.027,90.938,42.95419444]
[1772617762466,43.23387611,91.023,90.94,42.95419444]
[1772617763561,43.23387611,91.023,90.941,42.95419444]
[1772617764262,43.23387611,91.023,90.947,9.895]
[1772617764464,43.23387611,91.023,90.947,52.84919444]
[1772617764663,43.23387611,91.023,90.947,42.95419444]
[1772617765263,43.23387611,91.023,90.957,52.84819444]
[1772617768168,43.23387611,91.023,90.957,42.95419444]
[1772617768573,43.23387611,91.023,90.945,9.895]
[1772617768771,43.23387611,91.023,90.946,116.0]
[1772617769266,43.23387611,91.02,90.946,116.0]
[1772617769467,43.23387611,91.02,90.945,9.895]
[1772617769868,43.23387611,91.017,90.945,9.895]
[1772617770869,4.14728842,91.05,90.945,9.895]
[1772617770870,43.23387611,91.015,90.945,9.895]
[1772617771067,43.23387611,91.015,90.945,52.84919444]
[1772617772075,43.23387611,91.049,90.954,42.95419444]
[1772617772368,43.23387611,91.049,90.94,4.14728842]
[1772617772369,43.23387611,91.049,90.956,42.95419444]
[1772617772569,43.23387611,91.031,90.956,42.95419444]
[1772617774274,43.23387611,91.025,90.958,9.894]
[1772617774679,43.23387611,91.025,90.958,42.95419444]
[1772617774975,43.23387611,91.025,90.97,42.95419444]
[1772617776377,43.23387611,91.025,90.978,9.892]
[1772617776573,43.23387611,91.025,90.956,42.95419444]
[1772617776880,43.23387611,91.025,90.958,42.95419444]
[1772617778078,43.23387611,91.043,90.968,42.95419444]
[1772617778273,43.23387611,91.043,90.95,4.14728842]
[1772617778274,43.23387611,91.043,90.97,42.95419444]
[1772617778474,43.23387611,91.043,90.972,42.95419444]
[1772617779274,43.23387611,91.043,90.951,42.95419444]
[1772617779677,43.23387611,91.021,90.951,42.95419444]
[1772617780474,43.23387611,91.021,90.97,9.893]
[1772617780673,43.23387611,91.041,90.97,42.95419444]
[1772617781076,53.11887611,91.041,90.977,9.892]
[1772617781279,43.23387611,91.041,90.945,42.95419444]
[1772617781674,43.23387611,91.021,90.956,9.894]
[1772617782083,43.23387611,91.069,90.956,42.95419444]
[1772617782781,43.23387611,91.036,90.974,9.892]
[1772617784376,43.23387611,91.033,90.956,42.95419444]
[1772617784684,43.23387611,91.033,90.921,42.95419444]
[1772617784981,43.23387611,91.009,90.955,9.894]
[1772617785577,43.23387611,91.009,90.946,52.84919444]
[1772617785777,43.23387611,91.009,90.822,53.38492068]
[1772617785778,43.23387611,91.009,90.921,42.95419444]
[1772617786176,43.23387611,90.989,90.921,42.95419444]
[1772617786876,43.23387611,90.989,90.922,9.898]
[1772617787474,43.23387611,90.985,90.921,42.95419444]
[1772617787679,43.23387611,90.985,90.912,9.899]
[1772617788582,48.42750733,90.97,90.903,42.95419444]
[1772617789080,48.42750733,90.97,90.871,51.1507064]
[1772617789678,9.894,90.959,90.884,9.902]
[1772617789982,9.894,90.959,90.885,51.1507064]
[1772617790186,48.42750733,90.97,90.893,51.1507064]
[1772617790677,48.42750733,90.99,90.893,51.1507064]
[1772617790872,48.42750733,90.986,90.923,9.898]
[1772617791074,48.42750733,90.986,90.91,51.1507064]
[1772617791984,4.14728842,91.02,90.921,61.0487064]
[1772617791985,48.42750733,90.984,90.921,61.0487064]
[1772617792679,48.42750733,90.984,90.921,51.1507064]
[1772617792879,48.42750733,90.984,90.909,9.899]
[1772617793080,48.42750733,90.984,90.909,51.1507064]
[1772617793282,48.42750733,90.984,90.92,51.1507064]
[1772617793480,48.42750733,91.001,90.922,51.1507064]
[1772617793686,48.42750733,91.02,90.922,51.1507064]
[1772617794286,48.42750733,91.018,90.943,51.1507064]
[1772617795081,48.42750733,91.012,90.945,9.895]
[1772617795283,48.42750733,91.012,90.945,61.0457064]
[1772617795585,48.42750733,91.012,90.925,51.1507064]
[1772617795780,48.42750733,91.012,90.935,51.1507064]
[1772617797077,58.31550733,91.011,90.935,51.1507064]
[1772617797786,48.42750733,91.011,90.945,51.1507064]
[1772617798088,58.31450733,91.022,90.945,51.1507064]
[1772617798987,58.31450733,91.022,90.947,51.1507064]
[1772617799287,58.31450733,91.022,90.954,9.894]
[1772617799684,58.31450733,91.022,90.954,61.0447064]
[1772617800390,58.31550733,91.013,90.954,51.1507064]
[1772617800585,48.42750733,91.013,90.938,9.81714278]
[1772617800789,48.42750733,91.013,90.919,9.81714278]
[1772617800990,48.42750733,90.975,90.918,51.1507064]
[1772617801687,48.42750733,90.975,90.919,9.898]
[1772617802087,48.42750733,90.975,90.918,51.1507064]
[1772617802288,48.42750733,90.975,90.903,9.81714278]
[1772617802490,48.42750733,90.975,90.9,60.96784918]
[1772617802685,48.42750733,90.975,90.9,51.1507064]
[1772617803395,58.31950733,90.975,90.908,9.899]
[1772617803696,58.31950733,90.975,90.908,51.1507064]
[1772617803992,48.42750733,90.964,90.908,51.1507064]
[1772617804694,48.42750733,90.939,90.88,9.81714278]
[1772617804898,48.42750733,90.939,90.861,9.81714278]
[1772617805099,48.42750733,90.939,90.854,51.1507064]
[1772617805701,48.42750733,90.918,90.854,51.1507064]
[1772617807100,48.42750733,90.918,90.837,9.81714278]
[1772617807101,48.42750733,90.918,90.856,51.1507064]
[1772617807496,4.14728842,90.96,90.859,51.1507064]
[1772617807497,9.896,90.935,90.859,51.1507064]
[1772617808201,58.32350733,90.935,90.859,51.1507064]
[1772617808800,48.42750733,90.935,90.872,9.903]
[1772617808996,48.42750733,90.935,90.873,51.1507064]
[1772617809593,48.42750733,90.974,90.873,51.1507064]
[1772617809899,48.42750733,91.019,90.91,4.14728842]
[1772617810101,48.42750733,91.019,90.913,51.1507064]
[1772617810302,58.31650733,91.007,90.934,51.1507064]
[1772617811004,58.31650733,91.007,90.936,9.896]
[1772617811401,58.31650733,91.007,90.936,61.0467064]
[1772617811599,58.31650733,91.007,90.949,9.895]
[1772617811600,48.42750733,91.007,90.949,9.895]
[1772617811799,48.42750733,91.007,90.949,51.1507064]
[1772617813305,58.31650733,91.006,90.929,51.1507064]
[1772617814303,58.31650733,91.006,90.931,51.1507064]
[1772617814707,48.42750733,91.006,90.931,51.1507064]
[1772617815097,48.42750733,91.006,90.943,51.1507064]
[1772617816210,48.42750733,91.006,90.947,51.1507064]
[1772617816909,48.42750733,91.025,90.949,51.1507064]
[1772617817806,4.14186453,91.06,90.94,4.14186453]
[1772617817807,48.42750733,91.042,90.964,51.1507064]
[1772617819209,50.10758368,91.04,90.964,51.1507064]
[1772617819609,50.10758368,91.04,90.933,13.06897611]
[1772617819610,50.10758368,91.04,90.946,49.88268763]
[1772617819910,50.10758368,91.035,90.957,49.88268763]
[1772617820708,50.10758368,91.033,90.957,49.88268763]
[1772617821813,49.27715592,91.024,90.957,49.88268763]
[1772617822408,49.27715592,91.024,90.959,48.47159643]
[1772617822614,9.885,91.039,90.969,58.36459643]
[1772617824006,49.27715592,91.032,90.941,48.47159643]
[1772617824210,49.27715592,91.032,90.943,48.47159643]
[1772617825013,9.887,91.02,90.948,48.47159643]
[1772617826319,9.888,91.012,90.948,48.47159643]
[1772617826719,49.27715592,91.019,90.948,48.47159643]
[1772617828319,49.27715592,91.019,90.959,48.47159643]
[1772617829614,9.887,91.023,90.963,48.47159643]
[1772617830123,59.16415592,91.023,90.963,48.47159643]
[1772617830615,49.27715592,91.023,90.964,58.36459643]
[1772617832519,49.27715592,91.021,90.964,48.47159643]
[1772617833724,9.888,91.012,90.964,48.47159643]
[1772617834225,49.27715592,91.021,90.964,48.47159643]
[1772617834715,49.27715592,91.039,90.966,48.47159643]
[1772617834919,49.27715592,91.039,90.968,48.47159643]
[1772617835323,49.27715592,91.033,90.974,9.892]
[1772617835523,49.27715592,91.033,90.968,48.47159643]
[1772617836028,49.27715592,91.03,90.968,48.47159643]
[1772617836625,4.14186453,91.06,90.968,48.47159643]
[1772617836626,49.27715592,91.059,90.968,48.47159643]
[1772617837825,49.27715592,91.043,90.98,48.47159643]
[1772617839230,9.886,91.033,90.98,48.47159643]
[1772617839826,49.27715592,91.041,90.982,48.47159643]
[1772617840234,49.27715592,91.057,90.986,48.47159643]
[1772617841030,9.884,91.047,90.987,9.891]
[1772617841836,59.16115592,91.047,90.987,9.891]
[1772617842138,59.16215592,91.04,90.986,48.47159643]
[1772617842538,9.883,91.057,90.996,48.47159643]
[1772617843335,49.27715592,91.049,90.964,48.47159643]
[1772617844442,9.886,91.034,90.973,58.36359643]
[1772617844637,59.16315592,91.034,90.973,58.36359643]
[1772617846237,59.16315592,91.034,90.94,4.14186453]
[1772617846238,49.27715592,91.034,90.981,58.36259643]
[1772617846642,49.27715592,91.034,90.981,48.47159643]
[1772617847442,9.886,91.033,90.981,48.47159643]
[1772617847842,59.16315592,91.033,90.981,48.47159643]
[1772617848138,4.14186453,91.07,90.981,48.47159643]
[1772617848139,49.27715592,91.069,90.981,48.47159643]
[1772617849236,9.885,91.042,90.983,48.65058391]
[1772617850846,51.09664378,91.047,90.991,58.54058391]
[1772617851041,51.09664378,91.047,90.993,48.65058391]
[1772617851446,51.09664378,91.047,90.995,58.54058391]
[1772617851648,51.09664378,91.06,90.997,48.65058391]
[1772617852242,51.09664378,91.06,90.998,116.0]
[1772617853045,51.09664378,91.06,90.998,164.65058391]
[1772617853244,60.97964378,91.057,91.0,9.889]
[1772617854545,60.97964378,91.057,91.0,58.53958391]
[1772617855846,60.97964378,91.057,91.001,116.0]
[1772617856445,60.97964378,91.057,91.002,9.889]
[1772617857140,51.09664378,91.057,91.002,9.889]
[1772617857345,51.09664378,91.057,91.006,48.65058391]
[1772617857545,4.14186453,91.09,91.006,48.65058391]
[1772617857546,51.09664378,91.073,91.006,48.65058391]
[1772617857745,51.09664378,91.073,91.008,48.65058391]
[1772617858048,51.09664378,91.073,91.008,164.65058391]
[1772617858446,51.09664378,91.066,91.008,174.53858391]
[1772617858642,51.09664378,91.066,91.008,58.53858391]
[1772617859145,51.09664378,91.059,91.008,58.53858391]
[1772617859347,1.80223949,91.05,91.008,48.65058391]
[1772617859852,51.09664378,91.059,91.008,48.65058391]
[1772617860249,60.97964378,91.058,91.008,48.65058391]
[1772617860951,1.80223949,91.05,91.008,48.65058391]
[1772617862054,51.09664378,91.058,91.008,48.65058391]
[1772617862249,1.80223949,91.06,91.011,48.65058391]
[1772617862753,51.09664378,91.083,91.028,48.65058391]
[1772617862956,52.89888327,91.08,91.028,48.65058391]
[1772617863649,52.89888327,91.09,91.028,48.65058391]
[1772617863952,183.72464956,91.098,91.015,9.90311813]
[1772617863953,51.09664378,91.049,91.015,9.90311813]
[1772617864156,51.09664378,91.049,90.99,48.65058391]
[1772617864157,51.09664378,91.049,90.994,48.65058391]
[1772617864553,1.80223949,91.06,90.994,48.65058391]
[1772617865357,1.80223949,91.06,91.002,48.65058391]
[1772617865753,1.80223949,91.08,91.011,48.65058391]
[1772617866259,1.80223949,91.08,91.021,48.65058391]
[1772617866458,51.09664378,91.081,91.021,48.65058391]
[1772617867262,51.09664378,91.081,91.026,48.65058391]
[1772617868161,193.60364956,91.098,91.041,48.65058391]
[1772617868460,51.09664378,91.097,91.041,48.65058391]
[1772617869061,51.09664378,91.089,91.03,1.80223949]
[1772617870555,183.72464956,91.098,91.032,48.65058391]
[1772617870856,183.72464956,91.098,91.051,48.65058391]
[1772617871462,183.72464956,91.098,91.053,48.65058391]
[1772617872165,183.72464956,91.098,91.061,48.65058391]
[1772617874668,183.72464956,91.098,91.045,48.65058391]
[1772617874669,51.09664378,91.097,91.045,48.65058391]
[1772617874869,1.8005066,91.09,91.045,48.65058391]
[1772617875068,51.09664378,91.097,91.045,48.65058391]
[1772617875667,60.97564378,91.097,91.045,48.65058391]
[1772617875869,60.97564378,91.097,91.033,9.886]
[1772617876070,52.89715038,91.09,91.033,9.886]
[1772617876271,60.97664378,91.089,91.03,1.8005066]
[1772617877167,60.97664378,91.089,91.03,50.45109051]
[1772617878163,51.09664378,91.089,91.032,48.65058391]
[1772617879172,183.72464956,91.098,91.043,46.96044511]
[1772617880167,49.64459843,91.121,91.06,1.8005066]
[1772617880365,49.64459843,91.138,91.09,1.8005066]
[1772617880570,49.64459843,91.138,91.071,46.96044511]
[1772617880766,49.64459843,91.138,91.083,9.88]
[1772617881474,49.64459843,91.154,91.1,48.76095171]
[1772617881679,125.91020395,91.19,91.12,1.8005066]
[1772617881680,50.92495871,91.189,91.12,1.8005066]
[1772617881875,50.92495871,91.187,91.12,49.73045496]
[1772617882378,1.8005066,91.16,91.101,47.92994836]
[1772617882575,50.92495871,91.169,91.101,47.92994836]
[1772617884272,50.92495871,91.169,91.102,9.878]
[1772617884478,50.92495871,91.169,91.102,57.80794836]